fUST/lending_fUST_20250804
["ID","MTS","AMOUNT","RATE_DAILY","PERIOD"]
[377262867,1754307225168,-500.0,0.00033396,2]
[377262868,1754307225191,-500.0,0.00033396,2]
[377262869,1754307225213,-500.0,0.00033396,2]
[377262870,1754307225234,-500.0,0.00033396,2]
[377262871,1754307225257,-500.0,0.00033396,2]
[377262872,1754307225278,-500.0,0.00033396,2]
[377262873,1754307225300,-500.0,0.00033396,2]
[377262874,1754307225322,-500.0,0.00033396,2]
[377262875,1754307225343,-500.0,0.00033396,2]
[377262876,1754307225365,-500.0,0.00033396,2]
[377262877,1754307225387,-500.0,0.00033396,2]
[377262878,1754307225411,-500.0,0.00033396,2]
[377262879,1754307225434,-500.0,0.00033396,2]
[377262880,1754307225456,-500.0,0.00033396,2]
[377262881,1754307225478,-500.0,0.00033396,2]
[377262882,1754307225500,-500.0,0.00033396,2]
[377262883,1754307225521,-500.0,0.00033396,2]
[377262884,1754307225544,-500.0,0.00033396,2]
[377262885,1754307225566,-500.0,0.00033396,2]
[377262886,1754307225589,-500.0,0.00033396,2]
[377262887,1754307225611,-500.0,0.00033396,2]
[377262888,1754307225632,-500.0,0.00033396,2]
[377262889,1754307225653,-500.0,0.00033396,2]
[377262890,1754307225678,-578.71330318,0.00033396,2]
[377262891,1754307225700,-500.0,0.00033396,2]
[377262892,1754307225722,-500.0,0.00033396,2]
[377262893,1754307225748,-500.0,0.00033396,2]
[377262894,1754307225770,-500.0,0.00033396,2]
[377262895,1754307225792,-500.0,0.00033396,2]
[377262896,1754307225815,-856.83322279,0.00033396,2]
[377262897,1754307225839,-856.83322279,0.00033396,2]
[377262898,1754307225862,-856.83322279,0.00033396,2]
[377262899,1754307225883,-567.16,0.00033396,2]
[377262900,1754307225904,-637.15,0.00033396,2]
[377262901,1754307225927,-2065.46,0.00033396,2]
[377262902,1754307225948,-460.0,0.00033397,2]
[377262903,1754307225969,-460.0,0.00033397,2]
[377262904,1754307225989,-460.0,0.00033397,2]
[377262905,1754307226010,-460.0,0.00033397,2]
[377262906,1754307226031,-460.0,0.00033397,2]
[377262907,1754307226053,-460.0,0.00033397,2]
[377262908,1754307226075,-3903.57,0.00033397,2]
[377262909,1754307226095,-460.0,0.00033397,2]
[377262910,1754307226116,-460.0,0.00033397,2]
[377262911,1754307226137,-621.38,0.00033397,2]
[377262912,1754307226157,-460.0,0.00033397,2]
[377262913,1754307226179,-460.0,0.00033397,2]
[377262914,1754307226201,-931.9,0.00033397,2]
[377262915,1754307226222,-460.0,0.00033397,2]
[377262916,1754307226241,-460.0,0.00033397,2]
[377262917,1754307226262,-460.0,0.00033397,2]
[377262918,1754307226283,-860.08,0.00033397,2]
[377262919,1754307226303,-460.0,0.00033397,2]
[377262920,1754307226324,-460.0,0.00033397,2]
[377262921,1754307226344,-460.0,0.00033397,2]
[377262922,1754307226365,-460.0,0.00033397,2]
[377262923,1754307226386,-460.0,0.00033397,2]
[377262924,1754307226406,-460.0,0.00033397,2]
[377262925,1754307226426,-460.0,0.00033397,2]
[377262926,1754307226447,-869.23,0.00033397,2]
[377262927,1754307226468,-1260.99,0.00033397,2]
[377262928,1754307226488,-460.0,0.00033397,2]
[377262929,1754307226513,-641.5,0.000334,7]
[377262930,1754307226534,-174.882,0.00033555,120]
[377262931,1754307226555,-1840.0,0.00033555,120]
[377262932,1754307226577,-436.4636917,0.00033579,2]
[377262933,1754307226597,-1054.2,0.00033586,2]
[377262934,1754307226619,-1929.77,0.00033586,2]
[377262935,1754307226640,-3411.58,0.00033586,2]
[377262936,1754307226661,-460.0,0.00033586,2]
[377262937,1754307226682,-488.15,0.00033586,2]
[377262938,1754307226703,-877.0,0.00033586,2]
[377262939,1754307226724,-680.32,0.00033586,2]
[377262940,1754307226749,-482.73,0.00033586,2]
[377262941,1754307226770,-651.04,0.00033586,2]
[377262942,1754307226793,-1525.67,0.00033586,2]
[377262943,1754307226813,-1077.8,0.00033586,2]
[377262944,1754307226835,-612.75,0.00033586,2]
[377262945,1754307226857,-500.0,0.0003365,5]
[377262946,1754307226879,-500.0,0.0003367,2]
[377262947,1754307226900,-460.0,0.0003367,2]
[377262948,1754307226922,-567.16,0.0003367,2]
[377262949,1754307226944,-637.15,0.0003367,2]
[377262950,1754307226967,-2065.46,0.0003367,2]
[377262951,1754307226989,-198.32,0.00033671,2]
[377262952,1754307227009,-460.0,0.00033671,2]
[377262953,1754307227030,-460.0,0.00033671,2]
[377262954,1754307227050,-460.0,0.00033671,2]
[377262955,1754307227070,-281.25717495,0.00033671,2]
[377262957,1754307303483,251.3584912,0.00033273,2]
[377262958,1754307304613,-251.35849118,0.00033319,2]
[377262959,1754307305758,251.1498326,0.000333,2]
[377262960,1754307307468,-243.88416744,0.00033364,2]
[377262961,1754307322454,160.0,0.0002,3]
[377262962,1754307322928,160.0,0.0003,10]
[377262964,1754307340678,170.0637687,0.00033272,2]
[377262965,1754307341142,170.0637687,0.00033285,2]
[377262966,1754307341689,170.0637687,0.00033297,2]
[377262967,1754307364436,24900.0,0.00032228,2]
[377262968,1754307394004,701.950407,0.00032197,2]
[377262969,1754307426045,8003.54409874,0.00033272,2]
[377262970,1754307436980,3187.71975804,0.00033271,2]
[377262971,1754307437418,174.47230171,0.00033271,2]
[377262972,1754307437785,174.4723017,0.00033284,2]
[377262973,1754307438230,174.4723017,0.00033296,2]
[377262974,1754307440999,500.0,0.00029565,2]
[377262975,1754307441344,500.0,0.00030573,7]
[377262976,1754307441761,500.0,0.00030658,7]
[377262977,1754307442003,500.0,0.00031345,7]
[377262978,1754307442691,500.0,0.00031422,7]
[377262979,1754307443251,500.0,0.00033232,7]
[377262980,1754307450598,500.0,0.00029442,2]
[377262981,1754307473644,408.42635851,0.00032855,2]
[377262982,1754307500496,312.16666667,0.000333,7]
[377262983,1754307520444,175.775083,0.00032218,2]
[377262984,1754307522778,212.76606,0.00025778,2]
[377262985,1754307523177,208.44244918,0.00026044,2]
[377262986,1754307532329,4684.8454769,0.00032452,2]
[377262987,1754307588891,9769.028391,0.00032217,2]
[377262988,1754307626819,666.0,0.00032193,2]
[377262990,1754307685183,-300.0,0.0003337,3]
[377262991,1754307685213,-300.0,0.0003337,3]
[377262992,1754307685242,-400.0,0.0003337,2]
[377262993,1754307685272,-1066.0,0.00033371,3]
[377262994,1754307685301,-400.0,0.00033371,3]
[377262995,1754307685331,-1600.0,0.00033371,3]
[377262996,1754307685360,-400.0,0.00033371,3]
[377262997,1754307685389,-443.28937339,0.00033373,5]
[377262998,1754307685418,-486.43131281,0.00033373,5]
[377262999,1754307685446,-500.0,0.00033373,5]
[377263000,1754307685474,-500.0,0.00033373,5]
[377263001,1754307685502,-500.0,0.00033373,5]
[377263002,1754307685530,-500.33812626,0.00033373,5]
[377263003,1754307685558,-500.0,0.00033373,5]
[377263004,1754307685586,-1579.86,0.00033374,10]
[377263005,1754307685616,-385.5188055,0.00033384,7]
[377263006,1754307685648,-500.0,0.00033384,2]
[377263007,1754307685679,-500.0,0.00033384,7]
[377263008,1754307685710,-500.0,0.00033384,2]
[377263009,1754307685743,-500.0,0.00033384,2]
[377263010,1754307685773,-293.05291139,0.00033384,7]
[377263011,1754307685804,-500.0,0.00033384,7]
[377263012,1754307685833,-500.0,0.00033384,7]
[377263013,1754307685863,-500.0,0.00033384,2]
[377263014,1754307685896,-500.0,0.00033384,2]
[377263015,1754307685927,-416.33394124,0.00033384,2]
[377263016,1754307685957,-358.35105882,0.00033384,7]
[377263017,1754307686071,-141.64894118,0.00033384,7]
[377263018,1754307686100,-377.1715351,0.00033384,7]
[377263019,1754307686130,-500.0,0.00033384,7]
[377263020,1754307686159,-500.0,0.00033384,2]
[377263021,1754307686190,-500.0,0.00033384,2]
[377263022,1754307686218,-500.0,0.00033384,7]
[377263023,1754307686248,-500.0,0.00033384,2]
[377263024,1754307686276,-570.28028098,0.00033384,2]
[377263025,1754307686309,-500.0,0.00033384,2]
[377263026,1754307686340,-500.0,0.00033384,7]
[377263027,1754307686367,-500.0,0.00033384,2]
[377263028,1754307686397,-500.0,0.00033384,2]
[377263029,1754307686428,-500.0,0.00033384,7]
[377263030,1754307686457,-500.0,0.00033384,2]
[377263031,1754307686626,-500.0,0.00033384,2]
[377263032,1754307686657,-500.0,0.00033384,2]
[377263033,1754307686690,-500.0,0.00033384,7]
[377263034,1754307686720,-500.0,0.00033384,7]
[377263035,1754307686756,-500.0,0.00033384,2]
[377263036,1754307686786,-500.0,0.00033384,2]
[377263037,1754307686814,-500.0,0.00033384,7]
[377263038,1754307686845,-500.0,0.00033384,7]
[377263039,1754307686875,-500.0,0.00033384,2]
[377263040,1754307686905,-500.0,0.00033384,7]
[377263041,1754307686936,-500.0,0.00033384,7]
[377263042,1754307686970,-500.0,0.00033384,2]
[377263043,1754307687000,-500.0,0.00033384,7]
[377263044,1754307687029,-500.0,0.00033384,7]
[377263045,1754307687060,-500.0,0.00033384,2]
[377263046,1754307687089,-500.0,0.00033384,7]
[377263047,1754307687119,-321.79848548,0.00033384,7]
[377263048,1754307687270,-178.20151452,0.00033384,7]
[377263049,1754307687299,-500.0,0.00033384,2]
[377263050,1754307687329,-500.0,0.00033384,7]
[377263051,1754307687358,-500.0,0.00033384,7]
[377263052,1754307687387,-500.0,0.00033384,7]
[377263053,1754307687416,-500.0,0.00033384,7]
[377263054,1754307687445,-500.0,0.00033384,7]
[377263055,1754307687474,-500.0,0.00033384,7]
[377263056,1754307687505,-373.79761571,0.00033384,7]
[377263057,1754307687533,-500.0,0.00033384,7]
[377263058,1754307687564,-500.0,0.00033384,7]
[377263059,1754307687595,-500.0,0.00033384,2]
[377263060,1754307687625,-500.0,0.00033384,7]
[377263061,1754307687655,-500.0,0.00033384,7]
[377263062,1754307687688,-500.0,0.00033384,2]
[377263063,1754307687718,-500.0,0.00033384,7]
[377263064,1754307687752,-500.0,0.00033384,2]
[377263065,1754307687783,-500.0,0.00033384,7]
[377263066,1754307687815,-500.0,0.00033384,7]
[377263067,1754307687848,-500.0,0.00033384,2]
[377263068,1754307687877,-500.0,0.00033384,7]
[377263069,1754307687907,-500.0,0.00033384,7]
[377263070,1754307687943,-500.0,0.00033384,2]
[377263071,1754307687975,-500.0,0.00033384,7]
[377263072,1754307688004,-500.0,0.00033384,7]
[377263073,1754307688034,-500.0,0.00033384,7]
[377263074,1754307688065,-500.0,0.00033384,2]
[377263075,1754307688095,-500.0,0.00033384,7]
[377263076,1754307688126,-500.0,0.00033384,2]
[377263077,1754307688157,-500.0,0.00033384,7]
[377263078,1754307688188,-396.00173954,0.00033384,7]
[377263079,1754307688361,-103.99826046,0.00033384,7]
[377263080,1754307688393,-500.0,0.00033384,2]
[377263081,1754307688422,-500.0,0.00033384,7]
[377263082,1754307688452,-500.0,0.00033384,2]
[377263083,1754307688481,-500.0,0.00033384,7]
[377263084,1754307688512,-500.0,0.00033384,2]
[377263085,1754307688542,-500.0,0.00033384,7]
[377263086,1754307688572,-500.0,0.00033384,7]
[377263087,1754307688603,-500.0,0.00033384,2]
[377263088,1754307688808,-500.0,0.00033384,7]
[377263089,1754307688840,-500.0,0.00033384,2]
[377263090,1754307688870,-500.0,0.00033384,7]
[377263091,1754307688903,-500.0,0.00033384,2]
[377263092,1754307688934,-500.0,0.00033384,7]
[377263093,1754307688967,-500.0,0.00033384,2]
[377263094,1754307689000,-500.0,0.00033384,2]
[377263095,1754307689032,-500.0,0.00033384,7]
[377263096,1754307689064,-500.0,0.00033384,2]
[377263097,1754307689096,-500.0,0.00033384,2]
[377263098,1754307689126,-500.0,0.00033384,7]
[377263099,1754307689158,-500.0,0.00033384,2]
[377263100,1754307689188,-500.0,0.00033384,7]
[377263101,1754307689218,-500.0,0.00033384,2]
[377263102,1754307689248,-500.0,0.00033384,7]
[377263103,1754307689281,-500.0,0.00033384,2]
[377263104,1754307689312,-500.0,0.00033384,2]
[377263105,1754307689346,-500.0,0.00033384,7]
[377263106,1754307689377,-500.0,0.00033384,2]
[377263107,1754307689408,-500.0,0.00033384,7]
[377263108,1754307689440,-500.0,0.00033384,2]
[377263109,1754307689471,-292.00347908,0.00033384,7]
[377263110,1754307689681,-207.99652092,0.00033384,7]
[377263111,1754307689713,-500.0,0.00033384,2]
[377263112,1754307689742,-500.0,0.00033384,7]
[377263113,1754307689773,-500.0,0.00033384,2]
[377263114,1754307689804,-500.0,0.00033384,2]
[377263115,1754307689836,-500.0,0.00033384,2]
[377263116,1754307689866,-500.0,0.00033384,7]
[377263117,1754307689900,-500.0,0.00033384,2]
[377263118,1754307689932,-500.0,0.00033384,7]
[377263119,1754307689966,-500.0,0.00033384,2]
[377263120,1754307689995,-500.0,0.00033384,7]
[377263121,1754307690029,-500.0,0.00033384,2]
[377263122,1754307690059,-500.0,0.00033384,7]
[377263123,1754307690087,-500.0,0.00033384,7]
[377263124,1754307690118,-500.0,0.00033384,7]
[377263125,1754307690150,-500.0,0.00033384,2]
[377263126,1754307690179,-500.0,0.00033384,7]
[377263127,1754307690210,-500.0,0.00033384,2]
[377263128,1754307690240,-500.0,0.00033384,7]
[377263129,1754307690271,-500.0,0.00033384,2]
[377263130,1754307690300,-500.0,0.00033384,7]
[377263131,1754307690328,-500.0,0.00033384,7]
[377263132,1754307690359,-500.0,0.00033384,2]
[377263133,1754307690390,-500.0,0.00033384,2]
[377263134,1754307690419,-500.0,0.00033384,7]
[377263135,1754307690452,-500.0,0.00033384,2]
[377263136,1754307690480,-500.0,0.00033384,7]
[377263137,1754307690509,-500.0,0.00033384,7]
[377263138,1754307690538,-512.61549433,0.00033384,7]
[377263139,1754307690568,-512.61549433,0.00033384,7]
[377263140,1754307690597,-20.92948651,0.00033384,7]
[377263141,1754307690974,-491.68600782,0.00033384,7]
[377263142,1754307691004,-512.61549433,0.00033384,7]
[377263143,1754307691034,-512.61549433,0.00033384,7]
[377263144,1754307691064,-512.61549433,0.00033384,7]
[377263145,1754307691094,-512.61549433,0.00033384,7]
[377263146,1754307691124,-512.61549433,0.00033384,7]
[377263147,1754307691153,-512.61549433,0.00033384,7]
[377263148,1754307691182,-512.61549433,0.00033384,7]
[377263149,1754307691212,-512.61549433,0.00033384,7]
[377263150,1754307691242,-500.0,0.00033384,7]
[377263151,1754307691271,-512.61549433,0.00033384,7]
[377263152,1754307691300,-512.61549433,0.00033384,7]
[377263153,1754307691329,-500.0,0.00033384,7]
[377263154,1754307691359,-512.61549433,0.00033384,7]
[377263155,1754307691389,-500.0,0.00033384,7]
[377263156,1754307691417,-512.61549433,0.00033384,7]
[377263157,1754307691446,-512.61549433,0.00033384,7]
[377263158,1754307691475,-500.0,0.00033384,7]
[377263159,1754307691504,-512.61549433,0.00033384,7]
[377263160,1754307691533,-512.61549433,0.00033384,7]
[377263161,1754307691562,-200.0,0.00033384,7]
[377263162,1754307691590,-512.61549433,0.00033384,7]
[377263163,1754307691619,-500.0,0.00033384,7]
[377263164,1754307691647,-512.61549433,0.00033384,7]
[377263165,1754307691676,-512.61549433,0.00033384,7]
[377263166,1754307691705,-512.61549433,0.00033384,7]
[377263167,1754307691734,-512.61549433,0.00033384,7]
[377263168,1754307691763,-512.61549433,0.00033384,7]
[377263169,1754307691791,-512.61549433,0.00033384,7]
[377263170,1754307691818,-512.61549433,0.00033384,7]
[377263171,1754307692328,-512.61549433,0.00033384,7]
[377263172,1754307692366,-500.0,0.00033384,2]
[377263173,1754307692404,-500.0,0.00033384,2]
[377263174,1754307692440,-512.61549433,0.00033384,7]
[377263175,1754307692479,-500.0,0.00033384,2]
[377263176,1754307692514,-512.61549433,0.00033384,7]
[377263177,1754307692550,-500.0,0.00033384,2]
[377263178,1754307692585,-512.61549433,0.00033384,7]
[377263179,1754307692620,-512.61549433,0.00033384,7]
[377263180,1754307692657,-500.0,0.00033384,2]
[377263181,1754307692693,-512.61549433,0.00033384,7]
[377263182,1754307692729,-500.0,0.00033384,2]
[377263183,1754307692765,-512.61549433,0.00033384,7]
[377263184,1754307692803,-500.0,0.00033384,2]
[377263185,1754307692838,-512.61549433,0.00033384,7]
[377263186,1754307692874,-500.0,0.00033384,2]
[377263187,1754307692911,-512.61549433,0.00033384,7]
[377263188,1754307692953,-500.0,0.00033384,2]
[377263189,1754307692992,-500.0,0.00033384,2]
[377263190,1754307693207,-500.0,0.00033384,2]
[377263191,1754307693246,-500.0,0.00033384,2]
[377263192,1754307693279,-500.0,0.00033384,2]
[377263193,1754307693311,-578.60170736,0.00033384,2]
[377263194,1754307693343,-500.0,0.00033384,2]
[377263195,1754307693374,-512.61549433,0.00033384,7]
[377263196,1754307693404,-512.61549433,0.00033384,7]
[377263197,1754307693434,-512.61549433,0.00033384,7]
[377263198,1754307693465,-512.61549433,0.00033384,7]
[377263199,1754307693494,-512.61549433,0.00033384,7]
[377263200,1754307693776,-512.61549433,0.00033384,7]
[377263201,1754307693808,-512.61549433,0.00033384,7]
[377263202,1754307693838,-512.61549433,0.00033384,7]
[377263203,1754307693869,-519.9,0.00033384,2]
[377263204,1754307693902,-645.03,0.00033384,2]
[377263205,1754307693939,-2091.03,0.00033384,2]
[377263206,1754307693970,-160.0,0.00033385,7]
[377263207,1754307697005,-512.6154943,0.00033384,7]
[377263208,1754307699335,-1316.55,0.00033377,10]
[377263209,1754307700632,-95.06123739,0.00033386,2]
[377263210,1754307700648,-20092.38703402,0.00033386,2]
[377263211,1754307700680,-8625.31971851,0.00033386,2]
[377263212,1754307700703,-12749.36056298,0.00033386,2]
[377263213,1754307700713,-8625.31971851,0.00033387,2]
[377263214,1754307700741,-30000.0,0.00033387,2]
[377263215,1754307700773,-2936.80883439,0.00033387,2]
[377263216,1754307700802,-160.0,0.00033396,2]
[377263217,1754307700830,-460.0,0.00033396,2]
[377263218,1754307700858,-460.0,0.00033396,2]
[377263219,1754307700886,-833.01,0.00033396,2]
[377263220,1754307700916,-1208.45,0.00033396,2]
[377263221,1754307700944,-460.0,0.00033396,2]
[377263222,1754307700974,-460.0,0.00033396,2]
[377263223,1754307701005,-460.0,0.00033396,2]
[377263224,1754307701034,-482.94,0.00033396,2]
[377263225,1754307701066,-3834.11233122,0.00033396,2]
[377263226,1754307701172,-6489.35766878,0.00033396,2]
[377263227,1754307701182,-460.0,0.00033396,2]
[377263228,1754307701191,-1217.0,0.00033396,2]
[377263229,1754307701200,-1864.96,0.00033396,2]
[377263230,1754307701209,-534.29,0.00033396,2]
[377263231,1754307701218,-1087.29,0.00033396,2]
[377263232,1754307701227,-866.16,0.00033396,2]
[377263233,1754307701236,-1893.19,0.00033396,2]
[377263234,1754307701245,-460.0,0.00033396,2]
[377263235,1754307701254,-460.0,0.00033396,2]
[377263236,1754307701264,-460.0,0.00033396,2]
[377263237,1754307701273,-460.0,0.00033396,2]
[377263238,1754307701283,-460.0,0.00033396,2]
[377263239,1754307701292,-1532.43116561,0.00033396,2]
[377263240,1754307701306,-2540.70883439,0.00033396,2]
[377263241,1754307701315,-467.81,0.00033396,2]
[377263242,1754307701325,-707.89,0.00033396,2]
[377263243,1754307701334,-460.0,0.00033396,2]
[377263244,1754307701343,-645.33,0.00033396,2]
[377263245,1754307701352,-460.0,0.00033396,2]
[377263246,1754307701361,-995.49,0.00033396,2]
[377263247,1754307701370,-840.46,0.00033396,2]
[377263248,1754307701379,-460.0,0.00033396,2]
[377263249,1754307701389,-651.97,0.00033396,2]
[377263250,1754307701399,-460.0,0.00033396,2]
[377263251,1754307701409,-467.41,0.00033396,2]
[377263252,1754307701418,-500.0,0.00033397,2]
[377263253,1754307701427,-460.0,0.00033397,2]
[377263254,1754307701437,-460.0,0.00033397,2]
[377263255,1754307701447,-460.0,0.00033397,2]
[377263256,1754307701456,-460.0,0.00033397,2]
[377263257,1754307701466,-633.26,0.00033397,2]
[377263258,1754307701475,-460.0,0.00033397,2]
[377263259,1754307701484,-643.49,0.00033397,2]
[377263260,1754307701494,-450.17511065,0.00033397,2]
[377263261,1754307701503,-677.42,0.00033397,2]
[377263262,1754307701512,-460.0,0.00033397,2]
[377263263,1754307701521,-460.0,0.00033397,2]
[377263264,1754307701530,-500.99588994,0.00033397,2]
[377263265,1754307701538,-460.0,0.00033397,2]
[377263266,1754307701547,-432.71136935,0.00033397,2]
[377263267,1754307701557,-460.0,0.00033397,2]
[377263268,1754307701566,-460.0,0.00033397,2]
[377263269,1754307701575,-468.72,0.00033397,2]
[377263270,1754307701585,-460.0,0.00033397,2]
[377263271,1754307701594,-460.0,0.00033397,2]
[377263272,1754307701603,-460.0,0.00033397,2]
[377263273,1754307701612,-460.0,0.00033397,2]
[377263274,1754307701621,-516.04,0.00033397,2]
[377263275,1754307701631,-460.0,0.00033397,2]
[377263276,1754307701639,-460.0,0.00033397,2]
[377263277,1754307701649,-460.0,0.00033397,2]
[377263278,1754307701658,-460.0,0.00033397,2]
[377263279,1754307701667,-1462.1,0.00033397,2]
[377263280,1754307701676,-1032.89,0.00033397,2]
[377263281,1754307701685,-587.22,0.00033397,2]
[377263282,1754307701694,-460.0,0.00033397,2]
[377263283,1754307701704,-537.47,0.00033397,2]
[377263284,1754307701713,-511.18,0.00033397,2]
[377263285,1754307701722,-1214.06,0.00033397,2]
[377263286,1754307701731,-1007.47,0.00033397,2]
[377263287,1754307701740,-927.72879567,0.00033397,2]
[377263288,1754307701757,-486.35120433,0.00033397,2]
[377263289,1754307701766,-460.0,0.00033397,2]
[377263290,1754307701775,-807.18,0.00033397,2]
[377263291,1754307701784,-260.07782866,0.00033397,2]
[377263292,1754307701794,-582.52,0.00033397,2]
[377263293,1754307701803,-460.0,0.00033397,2]
[377263294,1754307701812,-460.0,0.00033397,2]
[377263295,1754307701821,-460.0,0.00033397,2]
[377263296,1754307701830,-460.0,0.00033397,2]
[377263297,1754307701839,-1119.62,0.00033397,2]
[377263298,1754307701848,-525.34,0.00033397,2]
[377263299,1754307701856,-580.0,0.00033397,2]
[377263300,1754307701865,-663.49,0.00033397,2]
[377263301,1754307701874,-460.0,0.00033397,2]
[377263302,1754307701883,-460.0,0.00033397,2]
[377263303,1754307701892,-418.34838356,0.00033397,2]
[377263304,1754307701902,-1845.63,0.00033397,2]
[377263305,1754307701911,-1703.75,0.00033397,2]
[377263306,1754307701920,-460.0,0.00033397,2]
[377263307,1754307701929,-460.0,0.00033397,2]
[377263308,1754307701938,-460.0,0.00033397,2]
[377263309,1754307701947,-460.0,0.00033397,2]
[377263310,1754307701956,-812.97,0.00033397,2]
[377263311,1754307701966,-920.06,0.00033397,2]
[377263312,1754307701978,-460.0,0.00033397,2]
[377263313,1754307701987,-460.0,0.00033397,2]
[377263314,1754307701997,-460.0,0.00033397,2]
[377263315,1754307702006,-460.0,0.00033397,2]
[377263316,1754307702016,-605.87816079,0.00033397,2]
[377263317,1754307702025,-487.91,0.00033397,2]
[377263318,1754307702034,-1387.74,0.00033397,2]
[377263319,1754307702043,-861.03,0.00033397,2]
[377263320,1754307702052,-9032.10442266,0.00033397,2]
[377263321,1754307702076,-1434.69557734,0.00033397,2]
[377263322,1754307702085,-838.37,0.00033397,2]
[377263323,1754307702094,-460.0,0.00033397,2]
[377263324,1754307702103,-2000.0,0.00033555,120]
[377263325,1754307702112,-207.64,0.00033555,120]
[377263326,1754307702122,-2000.0,0.00033555,120]
[377263327,1754307702131,-2000.0,0.00033555,120]
[377263328,1754307702140,-2000.0,0.00033555,120]
[377263329,1754307702149,-13936.27683704,0.00033565,2]
[377263330,1754307702158,-1870.99992868,0.0003357,2]
[377263331,1754307702167,-623.91,0.00033586,2]
[377263332,1754307702176,-2628.10765694,0.00033586,2]
[377263333,1754307702197,-1357.90234306,0.00033586,2]
[377263334,1754307702206,-476.16,0.00033586,2]
[377263335,1754307702215,-460.0,0.00033586,2]
[377263336,1754307702224,-464.07,0.00033586,2]
[377263337,1754307702233,-1078.33,0.00033586,2]
[377263338,1754307702243,-5160.45,0.00033586,2]
[377263339,1754307702253,-460.0,0.00033586,2]
[377263340,1754307702262,-627.99,0.00033586,2]
[377263341,1754307702272,-498.14,0.00033586,2]
[377263342,1754307702282,-2031.81,0.00033586,2]
[377263343,1754307702292,-460.0,0.00033586,2]
[377263344,1754307703108,-179.40814277,0.00033373,35]
[377263345,1754307716347,100000.0,0.0003299,2]
[377263346,1754307736330,5000.0,0.000333,2]
[377263347,1754307741068,500.0,0.00033215,7]
[377263348,1754307741995,3619.98,0.0003299,30]
[377263349,1754307742898,500.0,0.00031699,7]
[377263350,1754307749884,500.0,0.00033168,7]
[377263351,1754307752314,5000.0,0.000333,2]
[377263352,1754307761223,162.0277016,0.00032514,2]
[377263355,1754307773592,-500.0,0.00033373,5]
[377263356,1754307773624,-2308.49,0.00033384,2]
[377263357,1754307773654,-460.0,0.00033384,2]
[377263358,1754307773682,-460.0,0.00033384,2]
[377263359,1754307773709,-400.0,0.00033395,2]
[377263360,1754307773738,-3269.44,0.00033396,2]
[377263361,1754307773767,-1401.18,0.00033396,2]
[377263362,1754307773795,-731.63,0.00033396,2]
[377263363,1754307774036,-460.0,0.00033396,2]
[377263364,1754307774065,-562.76,0.00033396,2]
[377263365,1754307774094,-869.26,0.00033396,2]
[377263366,1754307774125,-460.0,0.00033396,2]
[377263367,1754307774153,-1253.26,0.00033396,2]
[377263368,1754307774180,-507.80892011,0.00033396,2]
[377263369,1754307774212,-500.0,0.00033396,7]
[377263370,1754307774243,-500.0,0.00033396,2]
[377263371,1754307774272,-212.34215978,0.00033396,7]